fUSD/lending_fUSD_20240606
["ID","MTS","AMOUNT","RATE_DAILY","PERIOD"]
[328640900,1717659039043,-151.0,0.00024798,7]
[328640901,1717659039053,-151.0,0.00024798,7]
[328640902,1717659039063,-206.640717,0.00024798,7]
[328640903,1717659039072,-206.640717,0.00024798,7]
[328640904,1717659039082,-14323.02643888,0.00024798,2]
[328640905,1717659039091,-14323.02643879,0.00024798,2]
[328640906,1717659039101,-14323.02643879,0.00024798,2]
[328640907,1717659039111,-14323.02643879,0.00024798,2]
[328640908,1717659039120,-14323.02643879,0.00024798,2]
[328640909,1717659039130,-14323.02643879,0.00024798,2]
[328640910,1717659039140,-14323.02643879,0.00024798,2]
[328640911,1717659039150,-151.0,0.00024798,7]
[328640912,1717659039159,-151.0,0.00024798,7]
[328640913,1717659039169,-151.0,0.00024798,7]
[328640914,1717659039179,-151.0,0.00024798,7]
[328640915,1717659039189,-350.0,0.00024798,7]
[328640916,1717659039199,-1523.119791,0.00024798,7]
[328640917,1717659039209,-350.0,0.00024798,7]
[328640918,1717659039219,-1523.119791,0.00024798,7]
[328640920,1717659039229,-151.0,0.00024798,7]
[328640921,1717659039239,-276.544958,0.00024798,7]
[328640922,1717659039249,-151.0,0.00024798,7]
[328640923,1717659039258,-276.544958,0.00024798,7]
[328640924,1717659039268,-151.0,0.00024798,7]
[328640925,1717659039278,-151.0,0.00024798,7]
[328640926,1717659039287,-151.0,0.00024798,7]
[328640927,1717659039297,-151.0,0.00024798,7]
[328640928,1717659039307,-151.0,0.00024798,7]
[328640930,1717659039317,-302.076235,0.00024798,7]
[328640932,1717659039327,-302.076235,0.00024798,7]
[328640933,1717659039337,-151.0,0.00024798,7]
[328640934,1717659039346,-214.855669,0.00024798,7]
[328640935,1717659039356,-999.620556,0.00024798,7]
[328640936,1717659039366,-999.620556,0.00024798,7]
[328640937,1717659039375,-214.855669,0.00024798,7]
[328640938,1717659039385,-178.253718,0.00024798,7]
[328640939,1717659039395,-151.0,0.00024798,7]
[328640940,1717659039405,-178.253718,0.00024798,7]
[328640941,1717659039414,-151.0,0.00024798,7]
[328640942,1717659039424,-308.55583,0.00024798,7]
[328640943,1717659039433,-1753.57585,0.00024798,7]
[328640944,1717659039442,-308.55583,0.00024798,7]
[328640945,1717659039452,-1753.57585,0.00024798,7]
[328640946,1717659039462,-189.935219,0.00024798,7]
[328640947,1717659039472,-219.933493,0.00024798,7]
[328640948,1717659039482,-151.0,0.00024798,7]
[328640949,1717659039491,-189.935219,0.00024798,7]
[328640950,1717659039503,-219.933493,0.00024798,7]
[328640951,1717659039512,-630.921759,0.00024798,7]
[328640952,1717659039521,-151.0,0.00024798,7]
[328640953,1717659039531,-630.921759,0.00024798,7]
[328640954,1717659039541,-151.0,0.00024798,7]
[328640955,1717659039551,-829.215337,0.00024798,7]
[328640956,1717659039561,-829.215337,0.00024798,7]
[328640957,1717659039571,-151.0,0.00024798,7]
[328640958,1717659039581,-151.0,0.00024798,7]
[328640959,1717659039590,-151.0,0.00024798,7]
[328640960,1717659039600,-259.689758,0.00024798,7]
[328640961,1717659039609,-677.573868,0.00024798,7]
[328640962,1717659039619,-259.689758,0.00024798,7]
[328640963,1717659039629,-677.573868,0.00024798,7]
[328640964,1717659039639,-151.0,0.00024798,7]
[328640965,1717659039649,-151.0,0.00024798,7]
[328640966,1717659039658,-151.0,0.00024798,7]
[328640967,1717659039668,-585.565116,0.00024798,7]
[328640968,1717659039678,-7607.699988,0.00024798,7]
[328640969,1717659039689,-585.565116,0.00024798,7]
[328640970,1717659039698,-175.582608,0.00024798,7]
[328640971,1717659039709,-7607.699988,0.00024798,7]
[328640972,1717659039718,-151.0,0.00024798,7]
[328640973,1717659039728,-175.582608,0.00024798,7]
[328640974,1717659039737,-151.0,0.00024798,7]
[328640975,1717659039747,-348.828489,0.00024798,7]
[328640976,1717659039759,-151.0,0.00024798,7]
[328640977,1717659039772,-348.828489,0.00024798,7]
[328640978,1717659039783,-151.0,0.00024798,7]
[328640979,1717659039793,-151.0,0.00024798,7]
[328640980,1717659039805,-151.0,0.00024798,7]
[328640981,1717659039814,-151.0,0.00024798,7]
[328640982,1717659039823,-151.0,0.00024798,7]
[328640983,1717659039833,-160.072207,0.00024798,7]
[328640984,1717659039844,-151.0,0.00024798,7]
[328640985,1717659039854,-1015.520363,0.00024798,7]
[328640986,1717659039863,-1015.520363,0.00024798,7]
[328640987,1717659039873,-332.724879,0.00024798,7]
[328640988,1717659039883,-332.724879,0.00024798,7]
[328640989,1717659039892,-151.0,0.00024798,7]
[328640990,1717659039903,-261.15557,0.00024798,7]
[328640991,1717659039912,-151.0,0.00024798,7]
[328640992,1717659039922,-151.0,0.00024798,7]
[328640993,1717659039932,-261.15557,0.00024798,7]
[328640994,1717659039942,-151.0,0.00024798,7]
[328640995,1717659039951,-184.936114,0.00024798,7]
[328640996,1717659039962,-321.932562,0.00024798,7]
[328640997,1717659039972,-398.509368,0.00024798,7]
[328640998,1717659039982,-184.936114,0.00024798,7]
[328640999,1717659039991,-398.509368,0.00024798,7]
[328641000,1717659040001,-321.932562,0.00024798,7]
[328641001,1717659040010,-151.0,0.00024799,7]
[328641002,1717659040020,-151.0,0.00024799,7]
[328641003,1717659040030,-153.176802,0.00024799,7]
[328641004,1717659040040,-151.0,0.00024799,7]
[328641005,1717659040050,-151.0,0.00024799,7]
[328641006,1717659040060,-151.0,0.00024799,7]
[328641007,1717659040071,-151.0,0.00024799,7]
[328641008,1717659040081,-151.0,0.00024799,7]
[328641009,1717659040091,-151.0,0.00024799,7]
[328641010,1717659040101,-151.0,0.00024799,7]
[328641011,1717659040111,-151.0,0.00024799,7]
[328641012,1717659040120,-151.0,0.00024799,7]
[328641013,1717659040130,-270.379917,0.00024799,7]
[328641014,1717659040139,-195.770398,0.00024799,7]
[328641015,1717659040149,-270.379917,0.00024799,7]
[328641016,1717659040159,-1219.82916,0.00024799,7]
[328641017,1717659040168,-1219.82916,0.00024799,7]
[328641018,1717659040177,-2977.43967242,0.00024799,2]
[328641019,1717659040187,-2977.43967242,0.00024799,2]
[328641020,1717659040197,-2977.43967242,0.00024799,2]
[328641021,1717659040206,-2977.43967242,0.00024799,2]
[328641022,1717659040217,-2977.43967242,0.00024799,2]
[328641023,1717659040227,-2977.43967242,0.00024799,2]
[328641024,1717659040237,-2977.43967242,0.00024799,2]
[328641025,1717659040247,-6792.60300481,0.000249,2]
[328641026,1717659040257,-150.5,0.0002497,15]
[328641027,1717659040268,-150.5,0.0002498,15]
[328641028,1717659040278,-151.0,0.00024986,7]
[328641029,1717659040288,-151.0,0.00024986,7]
[328641030,1717659040297,-156.84881,0.00024986,7]
[328641031,1717659040307,-156.84881,0.00024986,7]
[328641032,1717659040316,-151.0,0.00024986,7]
[328641033,1717659040325,-177.264467,0.00024986,7]
[328641034,1717659040335,-151.0,0.00024986,7]
[328641035,1717659040344,-151.0,0.00024986,7]
[328641036,1717659040354,-150.5,0.0002499,15]
[328641037,1717659040363,-838.33568033,0.00024999,2]
[328641038,1717659040373,-2208.37860878,0.00025,2]
[328641039,1717659040382,-158.98454596,0.00025,2]
[328641040,1717659040391,-155.0,0.00025,2]
[328641041,1717659040400,-578.20913849,0.00025,14]
[328641042,1717659040410,-713.77198143,0.00025,2]
[328641043,1717659040419,-929.72635158,0.00025,2]
[328641044,1717659040429,-325834.20072757,0.00025,2]
[328641045,1717659040440,-706.05483356,0.00025,2]
[328641046,1717659040449,-155.0,0.00025,2]
[328641047,1717659040459,-225.04645167,0.00025,2]
[328641048,1717659040469,-2865.47692962,0.00025,2]
[328641049,1717659040478,-325.64160337,0.00025,2]
[328641050,1717659040488,-151.0,0.00025,7]
[328641051,1717659040498,-151.0,0.00025,7]
[328641052,1717659040509,-151.0,0.00025,7]
[328641053,1717659040518,-170.804632,0.00025,7]
[328641054,1717659040528,-156.84881,0.00025,7]
[328641055,1717659040537,-156.84881,0.00025,7]
[328641056,1717659040547,-325.89141873,0.00025,2]
[328641057,1717659040557,-151.0,0.00025,7]
[328641058,1717659040567,-151.0,0.00025,7]
[328641059,1717659040577,-151.0,0.00025,7]
[328641060,1717659040587,-282.312247,0.00025,7]
[328641061,1717659040596,-151.0,0.00025,7]
[328641062,1717659040606,-151.0,0.00025,7]
[328641063,1717659040615,-151.0,0.00025,7]
[328641064,1717659040624,-151.0,0.00025,7]
[328641065,1717659040635,-151.0,0.00025,7]
[328641066,1717659040645,-151.0,0.00025,7]
[328641067,1717659040655,-151.0,0.00025,7]
[328641068,1717659040664,-151.0,0.00025,7]
[328641069,1717659040674,-151.0,0.00025,7]
[328641070,1717659040684,-151.0,0.00025,7]
[328641071,1717659040694,-270.379917,0.00025,7]
[328641072,1717659040704,-270.379917,0.00025,7]
[328641073,1717659040714,-151.0,0.00025,7]
[328641074,1717659040724,-1219.82916,0.00025,7]
[328641075,1717659040734,-151.0,0.00025,7]
[328641076,1717659040744,-207.79448,0.00025,7]
[328641077,1717659040754,-1219.82916,0.00025,7]
[328641078,1717659040768,-499.3199,0.00025,7]
[328641079,1717659040778,-207.79448,0.00025,7]
[328641080,1717659040788,-499.3199,0.00025,7]
[328641081,1717659040799,-151.0,0.00025,7]
[328641082,1717659040808,-151.0,0.00025,7]
[328641083,1717659040818,-153.789808,0.00025,7]
[328641084,1717659040827,-151.0,0.00025,7]
[328641085,1717659040837,-151.0,0.00025,7]
[328641086,1717659040848,-151.0,0.00025,7]
[328641087,1717659040858,-151.0,0.00025,7]
[328641088,1717659040868,-155.40409,0.00025,7]
[328641089,1717659040878,-823.497835,0.00025,7]
[328641090,1717659040888,-151.0,0.00025,7]
[328641091,1717659040898,-151.0,0.00025,7]
[328641092,1717659040908,-758.230552,0.00025,7]
[328641093,1717659040918,-758.230552,0.00025,7]
[328641094,1717659040929,-151.0,0.00025,7]
[328641095,1717659041047,-151.0,0.00025,7]
[328641096,1717659041058,-1652.913549,0.00025,7]
[328641097,1717659041068,-1652.913549,0.00025,7]
[328641098,1717659041078,-177.217128,0.00025,7]
[328641099,1717659041088,-151.578611,0.00025,7]
[328641100,1717659041098,-1004.642672,0.00025,7]
[328641101,1717659041107,-151.578611,0.00025,7]
[328641102,1717659041117,-1004.642672,0.00025,7]
[328641103,1717659041127,-151.0,0.00025,7]
[328641104,1717659041137,-151.0,0.00025,7]
[328641105,1717659041146,-151.0,0.00025,7]
[328641106,1717659041156,-279.778116,0.00025,7]
[328641107,1717659041166,-531.319097,0.00025,7]
[328641108,1717659041176,-279.778116,0.00025,7]
[328641109,1717659041186,-531.319097,0.00025,7]
[328641110,1717659041196,-151.0,0.00025,7]
[328641111,1717659041206,-247.258294,0.00025,7]
[328641112,1717659041216,-151.0,0.00025,7]
[328641113,1717659041226,-206.640717,0.00025,7]
[328641114,1717659041235,-206.640717,0.00025,7]
[328641115,1717659041245,-151.0,0.00025,7]
[328641116,1717659041255,-151.0,0.00025,7]
[328641117,1717659041265,-151.0,0.00025,7]
[328641118,1717659041275,-151.0,0.00025,7]
[328641119,1717659041284,-151.0,0.00025,7]
[328641120,1717659041294,-151.0,0.00025,7]
[328641121,1717659041303,-152.887669,0.00025,7]
[328641122,1717659041312,-152.887669,0.00025,7]
[328641123,1717659041322,-157.342905,0.00025,7]
[328641124,1717659041331,-155.777807,0.00025,7]
[328641125,1717659041341,-357.085294,0.00025,7]
[328641126,1717659041350,-151.0,0.00025,7]
[328641127,1717659041360,-357.085294,0.00025,7]
[328641128,1717659041369,-151.0,0.00025,7]
[328641129,1717659041378,-154.290228,0.00025,7]
[328641130,1717659041388,-350.0,0.00025,7]
[328641131,1717659041397,-1523.119791,0.00025,7]
[328641132,1717659041407,-350.0,0.00025,7]
[328641133,1717659041416,-1523.119791,0.00025,7]
[328641134,1717659041426,-151.0,0.00025,7]
[328641135,1717659041436,-276.544958,0.00025,7]
[328641136,1717659041445,-151.0,0.00025,7]
[328641137,1717659041455,-276.544958,0.00025,7]
[328641138,1717659041464,-151.0,0.00025,7]
[328641139,1717659041474,-151.0,0.00025,7]
[328641140,1717659041484,-151.0,0.00025,7]
[328641141,1717659041493,-151.0,0.00025,7]
[328641142,1717659041504,-151.0,0.00025,7]
[328641143,1717659041514,-302.076235,0.00025,7]
[328641144,1717659041523,-302.076235,0.00025,7]
[328641145,1717659041534,-151.0,0.00025,7]
[328641146,1717659041544,-999.620556,0.00025,7]
[328641147,1717659041554,-214.855669,0.00025,7]
[328641148,1717659041563,-999.620556,0.00025,7]
[328641149,1717659041573,-214.855669,0.00025,7]
[328641150,1717659041582,-178.253718,0.00025,7]
[328641151,1717659041592,-151.0,0.00025,7]
[328641152,1717659041601,-178.253718,0.00025,7]
[328641153,1717659041611,-151.0,0.00025,7]
[328641154,1717659041620,-308.55583,0.00025,7]
[328641156,1717659041630,-1753.57585,0.00025,7]
[328641158,1717659041639,-308.55583,0.00025,7]
[328641159,1717659041648,-1753.57585,0.00025,7]
[328641160,1717659041658,-189.935219,0.00025,7]
[328641161,1717659041667,-219.933493,0.00025,7]
[328641162,1717659041677,-151.0,0.00025,7]
[328641163,1717659041686,-189.935219,0.00025,7]
[328641164,1717659041695,-219.933493,0.00025,7]
[328641165,1717659041705,-630.921759,0.00025,7]
[328641166,1717659041716,-151.0,0.00025,7]
[328641167,1717659041725,-630.921759,0.00025,7]
[328641168,1717659041736,-151.0,0.00025,7]
[328641169,1717659041745,-829.215337,0.00025,7]
[328641170,1717659041756,-829.215337,0.00025,7]
[328641171,1717659041771,-151.0,0.00025,7]
[328641172,1717659041780,-151.0,0.00025,7]
[328641173,1717659041789,-151.0,0.00025,7]
[328641174,1717659041799,-259.689758,0.00025,7]
[328641175,1717659041809,-677.573868,0.00025,7]
[328641176,1717659041818,-259.689758,0.00025,7]
[328641177,1717659041827,-677.573868,0.00025,7]
[328641178,1717659041836,-151.0,0.00025,7]
[328641179,1717659041847,-151.0,0.00025,7]
[328641180,1717659041857,-151.0,0.00025,7]
[328641181,1717659041867,-585.565116,0.00025,7]
[328641182,1717659041876,-7607.699988,0.00025,7]
[328641183,1717659041886,-585.565116,0.00025,7]
[328641184,1717659041896,-175.582608,0.00025,7]
[328641185,1717659041905,-7607.699988,0.00025,7]
[328641186,1717659041914,-151.0,0.00025,7]
[328641187,1717659041924,-175.582608,0.00025,7]
[328641188,1717659041933,-151.0,0.00025,7]
[328641189,1717659041942,-348.828489,0.00025,7]
[328641190,1717659041951,-151.0,0.00025,7]
[328641191,1717659041960,-348.828489,0.00025,7]
[328641192,1717659041970,-151.0,0.00025,7]
[328641193,1717659041979,-166.719585,0.00025,7]
[328641194,1717659041988,-151.0,0.00025,7]
[328641195,1717659041998,-151.0,0.00025,7]
[328641196,1717659042008,-151.0,0.00025,7]
[328641197,1717659042018,-151.0,0.00025,7]
[328641198,1717659042029,-1015.520363,0.00025,7]
[328641199,1717659042038,-1015.520363,0.00025,7]
[328641200,1717659042047,-332.724879,0.00025,7]
[328641201,1717659042056,-332.724879,0.00025,7]
[328641202,1717659042065,-151.0,0.00025,7]
[328641203,1717659042075,-261.15557,0.00025,7]
[328641204,1717659042084,-151.0,0.00025,7]
[328641205,1717659042093,-151.0,0.00025,7]
[328641206,1717659042103,-261.15557,0.00025,7]
[328641207,1717659042112,-151.0,0.00025,7]
[328641208,1717659042121,-184.936114,0.00025,7]
[328641209,1717659042130,-1250.0,0.00025,2]
[328641210,1717659042139,-321.932562,0.00025,7]
[328641211,1717659042148,-398.509368,0.00025,7]
[328641212,1717659042157,-155.239868,0.00025,7]
[328641213,1717659042166,-184.936114,0.00025,7]
[328641214,1717659042176,-398.509368,0.00025,7]
[328641215,1717659042185,-321.932562,0.00025,7]
[328641216,1717659042194,-280.162191,0.00025,7]
[328641217,1717659042203,-280.162191,0.00025,7]
[328641218,1717659042212,-369.980668,0.00025,7]
[328641219,1717659042221,-4069.0,0.00025014,2]
[328641220,1717659042230,-200.85347,0.000251,2]
[328641221,1717659042239,-872.83,0.00025205,2]
[328641222,1717659042250,-417.06,0.00025205,2]
[328641223,1717659042259,-872.83,0.00025205,2]
[328641224,1717659042269,-417.06,0.00025205,2]
[328641225,1717659042278,-417.06,0.00025205,2]
[328641226,1717659042287,-872.83,0.00025205,2]
[328641227,1717659042296,-417.06,0.00025205,2]
[328641228,1717659042305,-872.83,0.00025205,2]
[328641229,1717659042315,-872.83,0.00025205,2]
[328641230,1717659042324,-417.06,0.00025205,2]
[328641231,1717659042334,-1000.0,0.00025205,2]
[328641232,1717659042343,-1643.47903912,0.00025309,2]
[328641233,1717659042353,-15444.56358067,0.00025355,2]
[328641234,1717659042362,-14323.02643879,0.00025524,2]
[328641235,1717659042372,-4436.0,0.0002557,15]
[328641236,1717659042381,-4436.0,0.0002558,15]
[328641237,1717659042391,-4436.0,0.0002559,15]
[328641238,1717659042400,-150.0,0.000257,2]
[328641239,1717659042409,-1565.72575285,0.0002575,5]
[328641240,1717659042418,-500.0,0.0002575,2]
[328641241,1717659042427,-211.39440268,0.00025751,2]
[328641242,1717659042436,-651.39349706,0.00025752,2]
[328641243,1717659042446,-151.0,0.00025837,5]
[328641244,1717659042455,-151.0,0.00025861,2]
[328641245,1717659042464,-163.26,0.0002589,2]
[328641246,1717659042473,-176.0,0.00025892,2]
[328641247,1717659042482,-183.0,0.00025892,2]
[328641248,1717659042491,-351.554,0.00025892,2]
[328641249,1717659042502,-2123.0,0.00025892,2]
[328641250,1717659042511,-1064.0,0.00025892,2]
[328641251,1717659042520,-290.0,0.00025892,2]
[328641252,1717659042529,-5151.0,0.00025892,2]
[328641253,1717659042539,-5778.0,0.00025892,2]
[328641254,1717659042548,-2977.43967242,0.00025934,2]
[328641255,1717659042557,-151.0,0.00026027,7]
[328641256,1717659042567,-151.0,0.00026027,7]
[328641257,1717659042577,-500.0,0.00026164,2]
[328641258,1717659042586,-500.0,0.00026164,2]
[328641259,1717659042595,-500.0,0.00026164,2]
[328641260,1717659042604,-500.0,0.00026164,2]
[328641261,1717659042613,-500.0,0.00026164,2]
[328641262,1717659042622,-500.0,0.00026164,2]
[328641263,1717659042632,-500.0,0.00026164,2]
[328641264,1717659042641,-500.0,0.00026164,2]
[328641265,1717659042650,-500.0,0.00026164,2]
[328641266,1717659042659,-500.0,0.00026164,2]
[328641267,1717659042668,-500.0,0.00026164,2]
[328641268,1717659042677,-500.0,0.00026164,2]
[328641269,1717659042687,-500.0,0.00026164,2]
[328641270,1717659042696,-500.0,0.00026164,2]
[328641271,1717659042706,-500.0,0.00026164,2]
[328641272,1717659042715,-500.0,0.00026164,2]
[328641273,1717659042724,-500.0,0.00026164,2]
[328641274,1717659042734,-500.0,0.00026164,2]
[328641275,1717659042743,-500.0,0.00026164,2]
[328641276,1717659042752,-500.0,0.00026164,2]
[328641277,1717659042766,-500.0,0.00026164,2]
[328641278,1717659042775,-500.0,0.00026164,2]
[328641279,1717659042784,-500.0,0.00026164,2]
[328641280,1717659042794,-500.0,0.00026164,2]
[328641281,1717659042805,-500.0,0.00026164,2]
[328641282,1717659042814,-500.0,0.00026164,2]
[328641283,1717659042823,-500.0,0.00026164,2]
[328641284,1717659042834,-500.0,0.00026164,2]
[328641285,1717659042843,-500.0,0.00026164,2]
[328641286,1717659042853,-500.0,0.00026164,2]
[328641287,1717659042862,-500.0,0.00026164,2]
[328641288,1717659042871,-500.0,0.00026164,2]
[328641289,1717659042879,-500.0,0.00026164,2]
[328641290,1717659042888,-500.0,0.00026164,2]
[328641291,1717659042898,-500.0,0.00026164,2]
[328641292,1717659042907,-500.0,0.00026164,2]
[328641293,1717659042916,-500.0,0.00026164,2]
[328641294,1717659042925,-500.0,0.00026164,2]
[328641295,1717659042934,-500.0,0.00026164,2]
[328641296,1717659042943,-500.0,0.00026164,2]
[328641297,1717659042952,-500.0,0.00026164,2]
[328641298,1717659042961,-500.0,0.00026164,2]
[328641299,1717659042970,-500.0,0.00026164,2]
[328641300,1717659042979,-500.0,0.00026164,2]
[328641301,1717659042989,-500.0,0.00026164,2]
[328641302,1717659042998,-500.0,0.00026164,2]
[328641303,1717659043008,-500.0,0.00026164,2]
[328641305,1717659043115,-500.0,0.00026164,2]
[328641306,1717659043124,-500.0,0.00026164,2]
[328641308,1717659043134,-500.0,0.00026164,2]
[328641309,1717659043143,-500.0,0.00026164,2]
[328641311,1717659043152,-500.0,0.00026164,2]
[328641312,1717659043161,-500.0,0.00026164,2]
[328641313,1717659043170,-500.0,0.00026164,2]
[328641314,1717659043179,-500.0,0.00026164,2]
[328641315,1717659043188,-500.0,0.00026164,2]
[328641316,1717659043198,-500.0,0.00026164,2]
[328641317,1717659043207,-500.0,0.00026164,2]
[328641318,1717659043216,-500.0,0.00026164,2]
[328641319,1717659043225,-500.0,0.00026164,2]
[328641320,1717659043234,-500.0,0.00026164,2]
[328641321,1717659043243,-500.0,0.00026164,2]
[328641322,1717659043252,-500.0,0.00026164,2]
[328641323,1717659043262,-500.0,0.00026164,2]
[328641324,1717659043271,-500.0,0.00026164,2]
[328641325,1717659043280,-500.0,0.00026164,2]
[328641326,1717659043289,-500.0,0.00026164,2]
[328641327,1717659043298,-500.0,0.00026164,2]
[328641328,1717659043307,-500.0,0.00026164,2]
[328641329,1717659043316,-500.0,0.00026164,2]
[328641330,1717659043326,-500.0,0.00026164,2]
[328641331,1717659043335,-500.0,0.00026164,2]
[328641332,1717659043344,-500.0,0.00026164,2]
[328641333,1717659043353,-500.0,0.00026164,2]
[328641334,1717659043363,-500.0,0.00026164,2]
[328641335,1717659043372,-500.0,0.00026164,2]
[328641336,1717659043381,-500.0,0.00026164,2]
[328641337,1717659043390,-500.0,0.00026164,2]
[328641338,1717659043399,-500.0,0.00026164,2]
[328641339,1717659043409,-500.0,0.00026164,2]
[328641340,1717659043418,-500.0,0.00026164,2]
[328641341,1717659043427,-500.0,0.00026164,2]
[328641342,1717659043436,-500.0,0.00026164,2]
[328641343,1717659043445,-500.0,0.00026164,2]
[328641344,1717659043454,-500.0,0.00026164,2]
[328641345,1717659043464,-500.0,0.00026164,2]
[328641346,1717659043474,-500.0,0.00026164,2]
[328641347,1717659043484,-500.0,0.00026164,2]
[328641348,1717659043494,-500.0,0.00026164,2]
[328641349,1717659043505,-500.0,0.00026164,2]
[328641350,1717659043514,-500.0,0.00026164,2]
[328641351,1717659043523,-500.0,0.00026164,2]
[328641352,1717659043533,-500.0,0.00026164,2]
[328641353,1717659043542,-500.0,0.00026164,2]
[328641354,1717659043551,-500.0,0.00026164,2]
[328641356,1717659043560,-500.0,0.00026164,2]
[328641358,1717659043570,-500.0,0.00026164,2]
[328641360,1717659043579,-500.0,0.00026164,2]
[328641362,1717659043588,-500.0,0.00026164,2]
[328641364,1717659043597,-15444.56358067,0.00026264,2]
[328641366,1717659043606,-1044.48,0.00026267,2]
[328641368,1717659043615,-17487.96609252,0.000264,2]
[328641370,1717659043625,-19351.92248578,0.000268,2]
[328641372,1717659043636,-151.0,0.00026878,7]
[328641374,1717659043645,-170.7597448,0.000269,2]
[328641376,1717659043655,-4025.22914722,0.00027,2]
[328641378,1717659043664,-11041.28398248,0.00027,2]
[328641380,1717659043673,-192361.15956315,0.00027,2]
[328641382,1717659043683,-151.0,0.00027,7]
[328641384,1717659043692,-174.1375,0.00027,7]
[328641386,1717659043702,-151.0,0.00027,7]
[328641388,1717659043712,-170.804632,0.00027,7]
[328641390,1717659043722,-156.84881,0.00027,7]
[328641392,1717659043731,-156.84881,0.00027,7]
[328641394,1717659043740,-151.0,0.00027,7]
[328641396,1717659043750,-151.0,0.00027,7]
[328641398,1717659043763,-151.0,0.00027,7]
[328641400,1717659043774,-151.0,0.00027,7]
[328641402,1717659043783,-151.0,0.00027,7]
[328641404,1717659043796,-151.0,0.00027,7]
[328641406,1717659043806,-151.0,0.00027,7]
[328641408,1717659043815,-151.0,0.00027,7]
[328641410,1717659043825,-151.0,0.00027,7]
[328641412,1717659043835,-151.0,0.00027,7]
[328641413,1717659043845,-151.0,0.00027,7]
[328641414,1717659043855,-233.299833,0.00027,7]
[328641415,1717659043864,-151.0,0.00027,7]
[328641416,1717659043874,-270.379917,0.00027,7]
[328641417,1717659043884,-270.379917,0.00027,7]
[328641418,1717659043894,-151.0,0.00027,7]
[328641419,1717659043903,-1219.82916,0.00027,7]
[328641420,1717659043912,-151.0,0.00027,7]
[328641421,1717659043922,-207.79448,0.00027,7]
[328641422,1717659043932,-1219.82916,0.00027,7]
[328641423,1717659043941,-499.3199,0.00027,7]
[328641424,1717659043950,-207.79448,0.00027,7]
[328641425,1717659043960,-499.3199,0.00027,7]
[328641426,1717659043969,-151.0,0.00027,7]
[328641427,1717659043978,-151.0,0.00027,7]
[328641428,1717659043987,-151.0,0.00027,7]
[328641429,1717659043998,-157.023296,0.00027,7]
[328641430,1717659044008,-151.0,0.00027,7]
[328641431,1717659044017,-151.0,0.00027,7]
[328641432,1717659044027,-823.497835,0.00027,7]
[328641433,1717659044036,-151.0,0.00027,7]
[328641434,1717659044045,-151.0,0.00027,7]
[328641435,1717659044054,-758.230552,0.00027,7]
[328641436,1717659044064,-758.230552,0.00027,7]